Workbook

Sheet 毕节市公安局百里杜鹃分局-辅警招聘
A1: 毕节市公安局百里杜鹃分局2025年面向社会公开招聘警务辅助人员总成绩及进入体检名单
A2: 序号 | B2: 姓名 | C2: 岗位代码 | D2: 准考证号 | E2: 报考单位 | F2: 报考岗位 | G2: 笔试成绩 | H2: 面试成绩 | I2: 笔试成绩百分制换算 | J2: 笔试成绩 （占40%） | K2: 面试成绩 （占60%） | L2: 总成绩 | M2: 总排名 | N2: 是否进入体检 | O2: 备注
A3: 1 | B3: 梅博宇 | C3: 01 | D3: 22601010611 | E3: 毕节市公安局百里杜鹃分局 | F3: 勤务岗位 | G3: 130.90 | H3: 弃考 | I3: =G3/150*100 -> 87.27 | J3: =I3*0.4 -> 34.91 | L3: 34.91 | M3: 16
A4: 2 | B4: 李松 | C4: 01 | D4: 22601010123 | E4: 毕节市公安局百里杜鹃分局 | F4: 勤务岗位 | G4: 128.60 | H4: 71.33 | I4: =G4/150*100 -> 85.73 | J4: =I4*0.4 -> 34.29 | K4: =H4*0.6 -> 42.80 | L4: =J4+K4 -> 77.09 | M4: =RANK(L4,$L$4:$L$18,0) -> 4 | N4: 是
A5: 3 | B5: 李万豪 | C5: 01 | D5: 22601010726 | E5: 毕节市公安局百里杜鹃分局 | F5: 勤务岗位 | G5: 124.20 | H5: 75.67 | I5: 82.80 | J5: 33.12 | K5: =H5*0.6 -> 45.40 | L5: =J5+K5 -> 78.52 | M5: =RANK(L5,$L$4:$L$18,0) -> 1 | N5: 是
A6: 4 | B6: 李思宁 | C6: 01 | D6: 22601011504 | E6: 毕节市公安局百里杜鹃分局 | F6: 勤务岗位 | G6: 122.50 | H6: 76.33 | I6: 81.67 | J6: 32.67 | K6: 45.80 | L6: 78.46 | M6: 2 | N6: 是
A7: 5 | B7: 王宇 | C7: 01 | D7: 22601010207 | E7: 毕节市公安局百里杜鹃分局 | F7: 勤务岗位 | G7: 120.80 | H7: 74.33 | I7: 80.53 | J7: 32.21 | K7: 44.60 | L7: 76.81 | M7: 5 | N7: 是
A8: 6 | B8: 田矗矗 | C8: 01 | D8: 22601011329 | E8: 毕节市公安局百里杜鹃分局 | F8: 勤务岗位 | G8: 119.90 | H8: 72.33 | I8: 79.93 | J8: 31.97 | K8: 43.40 | L8: 75.37 | M8: 6 | N8: 是
A9: 7 | B9: 刘海 | C9: 01 | D9: 22601011207 | E9: 毕节市公安局百里杜鹃分局 | F9: 勤务岗位 | G9: 119.40 | H9: 76.33 | I9: 79.60 | J9: 31.84 | K9: 45.80 | L9: 77.64 | M9: 3 | N9: 是
A10: 8 | B10: 李杰 | C10: 01 | D10: 22601010914 | E10: 毕节市公安局百里杜鹃分局 | F10: 勤务岗位 | G10: 119.10 | H10: 62.33 | I10: 79.40 | J10: 31.76 | K10: 37.40 | L10: 69.16 | M10: 12
A11: 9 | B11: 苏楠 | C11: 01 | D11: 22601010321 | E11: 毕节市公安局百里杜鹃分局 | F11: 勤务岗位 | G11: 118.00 | H11: 66.00 | I11: 78.67 | J11: 31.47 | K11: 39.60 | L11: 71.07 | M11: 10
A12: 10 | B12: 刘龙 | C12: 01 | D12: 22601011809 | E12: 毕节市公安局百里杜鹃分局 | F12: 勤务岗位 | G12: 114.70 | H12: 66.00 | I12: 76.47 | J12: 30.59 | K12: 39.60 | L12: 70.19 | M12: 11
A13: 11 | B13: 黄承领 | C13: 01 | D13: 22601011120 | E13: 毕节市公安局百里杜鹃分局 | F13: 勤务岗位 | G13: 114.40 | H13: 62.67 | I13: 76.27 | J13: 30.51 | K13: 37.60 | L13: 68.11 | M13: 13
A14: 12 | B14: 李龙 | C14: 01 | D14: 22601011505 | E14: 毕节市公安局百里杜鹃分局 | F14: 勤务岗位 | G14: 114.30 | H14: 62.00 | I14: 76.20 | J14: 30.48 | K14: 37.20 | L14: 67.68 | M14: 14
A15: 13 | B15: 徐杰 | C15: 01 | D15: 22601010901 | E15: 毕节市公安局百里杜鹃分局 | F15: 勤务岗位 | G15: 113.60 | H15: 70.67 | I15: 75.73 | J15: 30.29 | K15: 42.40 | L15: 72.70 | M15: 8 | N15: 是
A16: 14 | B16: 陈赟 | C16: 01 | D16: 22601010311 | E16: 毕节市公安局百里杜鹃分局 | F16: 勤务岗位 | G16: 113.50 | H16: 69.67 | I16: 75.67 | J16: 30.27 | K16: 41.80 | L16: 72.07 | M16: 9
A17: 15 | B17: 熊雄 | C17: 01 | D17: 22601010414 | E17: 毕节市公安局百里杜鹃分局 | F17: 勤务岗位 | G17: 112.40 | H17: 74.33 | I17: 74.93 | J17: 29.97 | K17: 44.60 | L17: 74.57 | M17: 7 | N17: 是
A18: 16 | B18: 谢玉林 | C18: 01 | D18: 22601010719 | E18: 毕节市公安局百里杜鹃分局 | F18: 勤务岗位 | G18: 112.40 | H18: 60.33 | I18: 74.93 | J18: 29.97 | K18: 36.20 | L18: 66.17 | M18: 15
A20: 17 | B20: 田世雄 | C20: 02 | D20: 22601020118 | E20: 毕节市公安局百里杜鹃分局 | F20: 勤务岗位 | G20: 124.70 | H20: 75.33 | I20: =G20/150*100 -> 83.13 | J20: 33.25 | K20: 45.20 | L20: 78.45 | M20: =RANK(L20,L$20:L$35,0) -> 1 | N20: 是
A21: 18 | B21: 韦韬 | C21: 02 | D21: 22601020902 | E21: 毕节市公安局百里杜鹃分局 | F21: 勤务岗位 | G21: 124.40 | H21: 73.33 | I21: 82.93 | J21: 33.17 | K21: 44.00 | L21: 77.17 | M21: =RANK(L21,L$20:L$35,0) -> 3 | N21: 是
A22: 19 | B22: 陈阳红 | C22: 02 | D22: 22601021001 | E22: 毕节市公安局百里杜鹃分局 | F22: 勤务岗位 | G22: 123.50 | H22: 75.33 | I22: 82.33 | J22: 32.93 | K22: 45.20 | L22: 78.13 | M22: 2 | N22: 是
A23: 20 | B23: 赵洋 | C23: 02 | D23: 22601021222 | E23: 毕节市公安局百里杜鹃分局 | F23: 勤务岗位 | G23: 123.00 | H23: 66.00 | I23: 82.00 | J23: 32.80 | K23: 39.60 | L23: 72.40 | M23: 7 | N23: 是
A24: 21 | B24: 安晖 | C24: 02 | D24: 22601021106 | E24: 毕节市公安局百里杜鹃分局 | F24: 勤务岗位 | G24: 121.60 | H24: 73.33 | I24: 81.07 | J24: 32.43 | K24: 44.00 | L24: 76.42 | M24: 4 | N24: 是
A25: 22 | B25: 刘镔莹 | C25: 02 | D25: 22601020704 | E25: 毕节市公安局百里杜鹃分局 | F25: 勤务岗位 | G25: 120.30 | H25: 66.33 | I25: 80.20 | J25: 32.08 | K25: 39.80 | L25: 71.88 | M25: 8 | N25: 是
A26: 23 | B26: 蒋开辉 | C26: 02 | D26: 22601021215 | E26: 毕节市公安局百里杜鹃分局 | F26: 勤务岗位 | G26: 116.00 | H26: 65.00 | I26: 77.33 | J26: 30.93 | K26: 39.00 | L26: 69.93 | M26: 10
A27: 24 | B27: 苏帅 | C27: 02 | D27: 22601020305 | E27: 毕节市公安局百里杜鹃分局 | F27: 勤务岗位 | G27: 116.00 | H27: 61.67 | I27: 77.33 | J27: 30.93 | K27: 37.00 | L27: 67.94 | M27: 15
A28: 25 | B28: 胡志豪 | C28: 02 | D28: 22601020507 | E28: 毕节市公安局百里杜鹃分局 | F28: 勤务岗位 | G28: 115.70 | H28: 73.33 | I28: 77.13 | J28: 30.85 | K28: 44.00 | L28: 74.85 | M28: 5 | N28: 是
A29: 26 | B29: 李臻 | C29: 02 | D29: 22601020705 | E29: 毕节市公安局百里杜鹃分局 | F29: 勤务岗位 | G29: 114.40 | H29: 64.00 | I29: 76.27 | J29: 30.51 | K29: 38.40 | L29: 68.91 | M29: 13
A30: 27 | B30: 邓帅 | C30: 02 | D30: 22601021319 | E30: 毕节市公安局百里杜鹃分局 | F30: 勤务岗位 | G30: 113.20 | H30: 65 | I30: 75.47 | J30: 30.19 | K30: 39.00 | L30: 69.19 | M30: 12
A31: 28 | B31: 李孟龙 | C31: 02 | D31: 22601020401 | E31: 毕节市公安局百里杜鹃分局 | F31: 勤务岗位 | G31: 112.90 | H31: 66.33 | I31: 75.27 | J31: 30.11 | K31: 39.80 | L31: 69.90 | M31: 11
A32: 29 | B32: 许义豪 | C32: 02 | D32: 22601021510 | E32: 毕节市公安局百里杜鹃分局 | F32: 勤务岗位 | G32: 112.70 | H32: 64.33 | I32: 75.13 | J32: 30.05 | K32: 38.60 | L32: 68.65 | M32: 14
A33: 30 | B33: 李武纯 | C33: 02 | D33: 22601021523 | E33: 毕节市公安局百里杜鹃分局 | F33: 勤务岗位 | G33: 112.40 | H33: 60.67 | I33: 74.93 | J33: 29.97 | K33: 36.40 | L33: 66.38 | M33: 16
A34: 31 | B34: 韦金 | C34: 02 | D34: 22601021119 | E34: 毕节市公安局百里杜鹃分局 | F34: 勤务岗位 | G34: 112.00 | H34: 67.00 | I34: 74.67 | J34: 29.87 | K34: 40.20 | L34: 70.07 | M34: 9
A35: 32 | B35: 王俊 | C35: 02 | D35: 22601021726 | E35: 毕节市公安局百里杜鹃分局 | F35: 勤务岗位 | G35: 112.00 | H35: 72.33 | I35: 74.67 | J35: 29.87 | K35: 43.40 | L35: 73.26 | M35: 6 | N35: 是
A36: 33 | B36: 聂开兴 | C36: 02 | D36: 22601021230 | E36: 毕节市公安局百里杜鹃分局 | F36: 勤务岗位 | G36: 112.20 | H36: 弃考 | I36: 74.80 | J36: =I36*0.4 -> 29.92 | L36: 29.92 | M36: 18
A37: 34 | B37: 周均晨 | C37: 02 | D37: 22601020425 | E37: 毕节市公安局百里杜鹃分局 | F37: 勤务岗位 | G37: 114.90 | H37: 弃考 | I37: 76.60 | J37: 30.64 | L37: =J37+K37 -> 30.64 | M37: 17
L38: 0.00
A39: 35 | B39: 宋桂林 | C39: 03 | D39: 22601030712 | E39: 毕节市公安局百里杜鹃分局 | F39: 勤务岗位 | G39: 132.40 | H39: 83.47 | I39: =G39/150*100 -> 88.27 | J39: 35.31 | K39: =H39*0.6 -> 50.08 | L39: 85.39 | M39: =RANK(L39,$L$39:$L$57,0) -> 1 | N39: 是
A40: 36 | B40: 张春广 | C40: 03 | D40: 22601031622 | E40: 毕节市公安局百里杜鹃分局 | F40: 勤务岗位 | G40: 129.20 | H40: 77.4 | I40: 86.13 | J40: 34.45 | K40: 46.44 | L40: 80.89 | M40: =RANK(L40,$L$39:$L$57,0) -> 5 | N40: 是
A41: 37 | B41: 王可尊 | C41: 03 | D41: 22601030526 | E41: 毕节市公安局百里杜鹃分局 | F41: 勤务岗位 | G41: 126.00 | H41: 75.77 | I41: 84.00 | J41: 33.60 | K41: 45.46 | L41: 79.06 | M41: 6 | N41: 是
A42: 38 | B42: 祝源键 | C42: 03 | D42: 22601031506 | E42: 毕节市公安局百里杜鹃分局 | F42: 勤务岗位 | G42: 124.20 | H42: 85.17 | I42: 82.80 | J42: 33.12 | K42: 51.10 | L42: 84.22 | M42: 2 | N42: 是
A43: 39 | B43: 崔雷 | C43: 03 | D43: 22601031009 | E43: 毕节市公安局百里杜鹃分局 | F43: 勤务岗位 | G43: 124.00 | H43: 72.03 | I43: 82.67 | J43: 33.07 | K43: 43.22 | L43: 76.28 | M43: 8 | N43: 是
A44: 40 | B44: 谢涛 | C44: 03 | D44: 22601030222 | E44: 毕节市公安局百里杜鹃分局 | F44: 勤务岗位 | G44: 120.30 | H44: 82.17 | I44: 80.20 | J44: 32.08 | K44: 49.30 | L44: 81.38 | M44: 3 | N44: 是
A45: 41 | B45: 蒋涛 | C45: 03 | D45: 22601031605 | E45: 毕节市公安局百里杜鹃分局 | F45: 勤务岗位 | G45: 119.10 | H45: 76.97 | I45: =G45/150*100 -> 79.40 | J45: 31.76 | K45: 46.18 | L45: 77.94 | M45: 7 | N45: 是
A46: 42 | B46: 梁超 | C46: 03 | D46: 22601030106 | E46: 毕节市公安局百里杜鹃分局 | F46: 勤务岗位 | G46: 118.70 | H46: 71.57 | I46: 79.13 | J46: 31.65 | K46: 42.94 | L46: 74.60 | M46: 11
A47: 43 | B47: 吴宗富 | C47: 03 | D47: 22601030101 | E47: 毕节市公安局百里杜鹃分局 | F47: 勤务岗位 | G47: 118.10 | H47: 72.43 | I47: 78.73 | J47: 31.49 | K47: 43.46 | L47: 74.95 | M47: 10
A48: 44 | B48: 刘峰吕 | C48: 03 | D48: 22601031620 | E48: 毕节市公安局百里杜鹃分局 | F48: 勤务岗位 | G48: 116.90 | H48: 70.73 | I48: 77.93 | J48: 31.17 | K48: 42.44 | L48: 73.61 | M48: 12
A49: 45 | B49: 黄胜勇 | C49: 03 | D49: 22601031429 | E49: 毕节市公安局百里杜鹃分局 | F49: 勤务岗位 | G49: 116.20 | H49: 69.67 | I49: 77.47 | J49: 30.99 | K49: 41.80 | L49: 72.79 | M49: 14
A50: 46 | B50: 罗庆 | C50: 03 | D50: 22601031717 | E50: 毕节市公安局百里杜鹃分局 | F50: 勤务岗位 | G50: 115.90 | H50: 65.03 | I50: 77.27 | J50: 30.91 | K50: 39.02 | L50: 69.92 | M50: 16
A51: 47 | B51: 罗黄宇 | C51: 03 | D51: 22601030702 | E51: 毕节市公安局百里杜鹃分局 | F51: 勤务岗位 | G51: 115.50 | H51: 83.6 | I51: 77.00 | J51: 30.80 | K51: 50.16 | L51: 80.96 | M51: 4 | N51: 是
A52: 48 | B52: 王梦驰 | C52: 03 | D52: 22601030516 | E52: 毕节市公安局百里杜鹃分局 | F52: 勤务岗位 | G52: 115.40 | H52: 66.73 | I52: 76.93 | J52: 30.77 | K52: 40.04 | L52: 70.81 | M52: 15
A53: 49 | B53: 王扬 | C53: 03 | D53: 22601030112 | E53: 毕节市公安局百里杜鹃分局 | F53: 勤务岗位 | G53: 113.60 | H53: 弃考 | I53: 75.73 | J53: 30.29 | L53: 30.29 | M53: 19
A54: 50 | B54: 彭恒博 | C54: 03 | D54: 22601030129 | E54: 毕节市公安局百里杜鹃分局 | F54: 勤务岗位 | G54: 112.90 | H54: 75.13 | I54: 75.27 | J54: 30.11 | K54: 45.08 | L54: 75.18 | M54: 9
A55: 51 | B55: 朱胤辰 | C55: 03 | D55: 22601030920 | E55: 毕节市公安局百里杜鹃分局 | F55: 勤务岗位 | G55: 111.20 | H55: 64.73 | I55: 74.13 | J55: 29.65 | K55: 38.84 | L55: 68.49 | M55: 18
A56: 52 | B56: 刘方杰 | C56: 03 | D56: 22601031528 | E56: 毕节市公安局百里杜鹃分局 | F56: 勤务岗位 | G56: 111.00 | H56: 67.17 | I56: 74.00 | J56: 29.60 | K56: 40.30 | L56: 69.90 | M56: 17
A57: 53 | B57: 黄尧 | C57: 03 | D57: 22601030410 | E57: 毕节市公安局百里杜鹃分局 | F57: 勤务岗位 | G57: 110.40 | H57: 73.03 | I57: 73.60 | J57: 29.44 | K57: 43.82 | L57: 73.26 | M57: 13
L58: 0.00
A59: 54 | B59: 赵泽 | C59: 04 | D59: 22601041323 | E59: 毕节市公安局百里杜鹃分局 | F59: 勤务岗位 | G59: 130.20 | H59: 73.27 | I59: =G59/150*100 -> 86.80 | J59: 34.72 | K59: 43.96 | L59: 78.68 | M59: =RANK(L59,$L$59:$L$76,0) -> 4 | N59: 是
A60: 55 | B60: 熊天国 | C60: 04 | D60: 22601040515 | E60: 毕节市公安局百里杜鹃分局 | F60: 勤务岗位 | G60: 130.00 | H60: 74.6 | I60: =G60/150*100 -> 86.67 | J60: =I60*0.4 -> 34.67 | K60: 44.76 | L60: 79.43 | M60: =RANK(L60,$L$59:$L$76,0) -> 3 | N60: 是
A61: 56 | B61: 文雲 | C61: 04 | D61: 22601041808 | E61: 毕节市公安局百里杜鹃分局 | F61: 勤务岗位 | G61: 126.60 | H61: 77.23 | I61: 84.40 | J61: 33.76 | K61: 46.34 | L61: 80.10 | M61: 2 | N61: 是
A62: 57 | B62: 刘德志 | C62: 04 | D62: 22601040617 | E62: 毕节市公安局百里杜鹃分局 | F62: 勤务岗位 | G62: 125.40 | H62: 65.3 | I62: 83.60 | J62: 33.44 | K62: 39.18 | L62: 72.62 | M62: 15
A63: 58 | B63: 袁章 | C63: 04 | D63: 22601041014 | E63: 毕节市公安局百里杜鹃分局 | F63: 勤务岗位 | G63: 124.90 | H63: 69.6 | I63: 83.27 | J63: 33.31 | K63: 41.76 | L63: 75.07 | M63: 9
A64: 59 | B64: 王英杰 | C64: 04 | D64: 22601041422 | E64: 毕节市公安局百里杜鹃分局 | F64: 勤务岗位 | G64: 123.70 | H64: 74.03 | I64: 82.47 | J64: 32.99 | K64: 44.42 | L64: 77.40 | M64: 6 | N64: 是
A65: 60 | B65: 陈欣 | C65: 04 | D65: 22601041008 | E65: 毕节市公安局百里杜鹃分局 | F65: 勤务岗位 | G65: 122.30 | H65: 72.87 | I65: 81.53 | J65: 32.61 | K65: 43.72 | L65: 76.34 | M65: 7 | N65: 是
A66: 61 | B66: 吴坤 | C66: 04 | D66: 22601040420 | E66: 毕节市公安局百里杜鹃分局 | F66: 勤务岗位 | G66: 119.90 | H66: 76.63 | I66: 79.93 | J66: 31.97 | K66: 45.98 | L66: 77.95 | M66: 5 | N66: 是
A67: 62 | B67: 刘佼 | C67: 04 | D67: 22601041315 | E67: 毕节市公安局百里杜鹃分局 | F67: 勤务岗位 | G67: 119.70 | H67: 82.13 | I67: 79.80 | J67: 31.92 | K67: 49.28 | L67: 81.20 | M67: 1 | N67: 是
A68: 63 | B68: 唐驰 | C68: 04 | D68: 22601041709 | E68: 毕节市公安局百里杜鹃分局 | F68: 勤务岗位 | G68: 118.30 | H68: 69.2 | I68: 78.87 | J68: 31.55 | K68: 41.52 | L68: 73.07 | M68: 14
A69: 64 | B69: 王志煜 | C69: 04 | D69: 22601040229 | E69: 毕节市公安局百里杜鹃分局 | F69: 勤务岗位 | G69: 118.20 | H69: 72.83 | I69: 78.80 | J69: 31.52 | K69: =H69*0.6 -> 43.70 | L69: =J69+K69 -> 75.22 | M69: 8 | N69: 是
A70: 65 | B70: 王祥 | C70: 04 | D70: 22601040404 | E70: 毕节市公安局百里杜鹃分局 | F70: 勤务岗位 | G70: 117.80 | H70: 67.87 | I70: 78.53 | J70: 31.41 | K70: 40.72 | L70: 72.14 | M70: 16
A71: 66 | B71: 赵云 | C71: 04 | D71: 22601040604 | E71: 毕节市公安局百里杜鹃分局 | F71: 勤务岗位 | G71: 116.10 | H71: 70.63 | I71: 77.40 | J71: 30.96 | K71: 42.38 | L71: 73.34 | M71: 13
A72: 67 | B72: 周郑亮 | C72: 04 | D72: 22601041105 | E72: 毕节市公安局百里杜鹃分局 | F72: 勤务岗位 | G72: 113.90 | H72: 71.97 | I72: 75.93 | J72: 30.37 | K72: 43.18 | L72: 73.56 | M72: 12
A73: 68 | B73: 郭金涛 | C73: 04 | D73: 22601041122 | E73: 毕节市公安局百里杜鹃分局 | F73: 勤务岗位 | G73: 113.90 | H73: 73.37 | I73: 75.93 | J73: 30.37 | K73: 44.02 | L73: 74.40 | M73: 10
A74: 69 | B74: 车西志 | C74: 04 | D74: 22601041117 | E74: 毕节市公安局百里杜鹃分局 | F74: 勤务岗位 | G74: 113.30 | H74: 68.1 | I74: 75.53 | J74: 30.21 | K74: 40.86 | L74: 71.07 | M74: 18
A75: 70 | B75: 李生勇 | C75: 04 | D75: 22601041513 | E75: 毕节市公安局百里杜鹃分局 | F75: 勤务岗位 | G75: 113.20 | H75: 72.47 | I75: 75.47 | J75: 30.19 | K75: 43.48 | L75: 73.67 | M75: 11
A76: 71 | B76: 周宏 | C76: 04 | D76: 22601040818 | E76: 毕节市公安局百里杜鹃分局 | F76: 勤务岗位 | G76: 113.20 | H76: 68.67 | I76: 75.47 | J76: 30.19 | K76: 41.20 | L76: 71.39 | M76: 17
A78: 72 | B78: 赵廷 | C78: 05 | D78: 22601051610 | E78: 毕节市公安局百里杜鹃分局 | F78: 勤务岗位 | G78: 126.10 | H78: 79 | I78: =G78/150*100 -> 84.07 | J78: =I78*0.4 -> 33.63 | K78: 47.40 | L78: 81.03 | M78: =RANK(L78,L$78:L$92,0) -> 2 | N78: 是
A79: 73 | B79: 陈杰 | C79: 05 | D79: 22601050910 | E79: 毕节市公安局百里杜鹃分局 | F79: 勤务岗位 | G79: 125.30 | H79: 76 | I79: =G79/150*100 -> 83.53 | J79: =I79*0.4 -> 33.41 | K79: 45.60 | L79: 79.01 | M79: =RANK(L79,L$78:L$92,0) -> 6 | N79: 是
A80: 74 | B80: 李金凯 | C80: 05 | D80: 22601050109 | E80: 毕节市公安局百里杜鹃分局 | F80: 勤务岗位 | G80: 124.10 | H80: 77.4 | I80: =G80/150*100 -> 82.73 | J80: 33.09 | K80: 46.44 | L80: 79.53 | M80: 5 | N80: 是
A81: 75 | B81: 王健 | C81: 05 | D81: 22601051023 | E81: 毕节市公安局百里杜鹃分局 | F81: 勤务岗位 | G81: 123.50 | H81: 74 | I81: 82.33 | J81: 32.93 | K81: 44.40 | L81: 77.33 | M81: 8 | N81: 是
A82: 76 | B82: 毕浪 | C82: 05 | D82: 22601050127 | E82: 毕节市公安局百里杜鹃分局 | F82: 勤务岗位 | G82: 121.30 | H82: 78.87 | I82: 80.87 | J82: 32.35 | K82: 47.32 | L82: 79.67 | M82: 4 | N82: 是
A83: 77 | B83: 杨涛 | C83: 05 | D83: 22601050328 | E83: 毕节市公安局百里杜鹃分局 | F83: 勤务岗位 | G83: 121.30 | H83: 80.5 | I83: 80.87 | J83: 32.35 | K83: 48.30 | L83: 80.65 | M83: 3 | N83: 是
A84: 78 | B84: 李银涛 | C84: 05 | D84: 22601050114 | E84: 毕节市公安局百里杜鹃分局 | F84: 勤务岗位 | G84: 120.80 | H84: 83 | I84: 80.53 | J84: 32.21 | K84: 49.80 | L84: 82.01 | M84: 1 | N84: 是
A85: 79 | B85: 王振宇 | C85: 05 | D85: 22601051619 | E85: 毕节市公安局百里杜鹃分局 | F85: 勤务岗位 | G85: 119.80 | H85: 72.97 | I85: 79.87 | J85: 31.95 | K85: 43.78 | L85: 75.73 | M85: 11
A86: 80 | B86: 张晓浪 | C86: 05 | D86: 22601050925 | E86: 毕节市公安局百里杜鹃分局 | F86: 勤务岗位 | G86: 117.90 | H86: 77 | I86: 78.60 | J86: 31.44 | K86: 46.20 | L86: 77.64 | M86: 7 | N86: 是
A87: 81 | B87: 胡松 | C87: 05 | D87: 22601051715 | E87: 毕节市公安局百里杜鹃分局 | F87: 勤务岗位 | G87: 115.40 | H87: 60.1 | I87: 76.93 | J87: 30.77 | K87: 36.06 | L87: 66.83 | M87: 15
A88: 82 | B88: 胡毅 | C88: 05 | D88: 22601050413 | E88: 毕节市公安局百里杜鹃分局 | F88: 勤务岗位 | G88: 114.30 | H88: 74.33 | I88: 76.20 | J88: 30.48 | K88: 44.60 | L88: 75.08 | M88: 13
A89: 83 | B89: 朱康 | C89: 05 | D89: 22601050520 | E89: 毕节市公安局百里杜鹃分局 | F89: 勤务岗位 | G89: 114.30 | H89: 75.93 | I89: 76.20 | J89: 30.48 | K89: 45.56 | L89: 76.04 | M89: 10
A90: 84 | B90: 黄睿 | C90: 05 | D90: 22601051417 | E90: 毕节市公安局百里杜鹃分局 | F90: 勤务岗位 | G90: 112.70 | H90: 75.87 | I90: 75.13 | J90: 30.05 | K90: 45.52 | L90: 75.58 | M90: 12
A91: 85 | B91: 陈淳 | C91: 05 | D91: 22601050209 | E91: 毕节市公安局百里杜鹃分局 | F91: 勤务岗位 | G91: 110.60 | H91: 78.7 | I91: 73.73 | J91: 29.49 | K91: 47.22 | L91: 76.71 | M91: 9
A92: 86 | B92: 陆志 | C92: 05 | D92: 22601051602 | E92: 毕节市公安局百里杜鹃分局 | F92: 勤务岗位 | G92: 106.20 | H92: 74.53 | I92: 70.80 | J92: 28.32 | K92: 44.72 | L92: 73.04 | M92: 14
L93: 0.00
A94: 87 | B94: 雷丹 | C94: 06 | D94: 22601061521 | E94: 毕节市公安局百里杜鹃分局 | F94: 勤务岗位 | G94: 132.70 | H94: 79.6 | I94: =G94/150*100 -> 88.47 | J94: =I94*0.4 -> 35.39 | K94: 47.76 | L94: 83.15 | M94: =RANK(L94,L$94:L$105,0) -> 2 | N94: 是
A95: 88 | B95: 刘倩 | C95: 06 | D95: 22601060711 | E95: 毕节市公安局百里杜鹃分局 | F95: 勤务岗位 | G95: 130.90 | H95: 77.53 | I95: =G95/150*100 -> 87.27 | J95: =I95*0.4 -> 34.91 | K95: 46.52 | L95: 81.42 | M95: =RANK(L95,L$94:L$105,0) -> 11
A96: 89 | B96: 方卉 | C96: 06 | D96: 22601061721 | E96: 毕节市公安局百里杜鹃分局 | F96: 勤务岗位 | G96: 129.20 | H96: 80.03 | I96: 86.13 | J96: 34.45 | K96: 48.02 | L96: 82.47 | M96: 6
A97: 90 | B97: 罗铃玉 | C97: 06 | D97: 22601060219 | E97: 毕节市公安局百里杜鹃分局 | F97: 勤务岗位 | G97: 128.30 | H97: 81.33 | I97: 85.53 | J97: 34.21 | K97: 48.80 | L97: 83.01 | M97: 3 | N97: 是
A98: 91 | B98: 杜焕 | C98: 06 | D98: 22601061223 | E98: 毕节市公安局百里杜鹃分局 | F98: 勤务岗位 | G98: 127.20 | H98: 83.57 | I98: 84.80 | J98: 33.92 | K98: 50.14 | L98: 84.06 | M98: 1 | N98: 是
A99: 92 | B99: 高林梅 | C99: 06 | D99: 22601061515 | E99: 毕节市公安局百里杜鹃分局 | F99: 勤务岗位 | G99: 127.10 | H99: 79.43 | I99: 84.73 | J99: 33.89 | K99: 47.66 | L99: 81.55 | M99: 9
A100: 93 | B100: 陈颖 | C100: 06 | D100: 22601061219 | E100: 毕节市公安局百里杜鹃分局 | F100: 勤务岗位 | G100: 126.70 | H100: 77.13 | I100: 84.47 | J100: 33.79 | K100: 46.28 | L100: 80.06 | M100: 12
A101: 94 | B101: 王李鸿辰 | C101: 06 | D101: 22601061416 | E101: 毕节市公安局百里杜鹃分局 | F101: 勤务岗位 | G101: 126.40 | H101: 80.33 | I101: 84.27 | J101: 33.71 | K101: 48.20 | L101: 81.90 | M101: 8
A102: 95 | B102: 刘茜 | C102: 06 | D102: 22601061518 | E102: 毕节市公安局百里杜鹃分局 | F102: 勤务岗位 | G102: 126.10 | H102: 80.53 | I102: 84.07 | J102: 33.63 | K102: 48.32 | L102: 81.94 | M102: 7
A103: 96 | B103: 左金花 | C103: 06 | D103: 22601060629 | E103: 毕节市公安局百里杜鹃分局 | F103: 勤务岗位 | G103: 125.30 | H103: 81.97 | I103: 83.53 | J103: 33.41 | K103: 49.18 | L103: 82.60 | M103: 5 | N103: 是
A104: 97 | B104: 严林园 | C104: 06 | D104: 22601061316 | E104: 毕节市公安局百里杜鹃分局 | F104: 勤务岗位 | G104: 124.80 | H104: 82.5 | I104: 83.20 | J104: 33.28 | K104: 49.50 | L104: 82.78 | M104: 4 | N104: 是
A105: 98 | B105: 金娅钦 | C105: 06 | D105: 22601060625 | E105: 毕节市公安局百里杜鹃分局 | F105: 勤务岗位 | G105: 124.20 | H105: 80.63 | I105: 82.80 | J105: 33.12 | K105: 48.38 | L105: 81.50 | M105: 10
L106: 0.00
A107: 99 | B107: 杨璇 | C107: 07 | D107: 22601071612 | E107: 毕节市公安局百里杜鹃分局 | F107: 勤务岗位 | G107: 131.20 | H107: 78.37 | I107: =G107/150*100 -> 87.47 | J107: =I107*0.4 -> 34.99 | K107: =H107*0.6 -> 47.02 | L107: 82.01 | M107: =RANK(L107,$L$107:$L$114,0) -> 1 | N107: 是
A108: 100 | B108: 李杰 | C108: 07 | D108: 22601070916 | E108: 毕节市公安局百里杜鹃分局 | F108: 勤务岗位 | G108: 117.90 | H108: 74.67 | I108: =G108/150*100 -> 78.60 | J108: =I108*0.4 -> 31.44 | K108: 44.80 | L108: 76.24 | M108: =RANK(L108,$L$107:$L$114,0) -> 4 | N108: 是
A109: 101 | B109: 夏言 | C109: 07 | D109: 22601071128 | E109: 毕节市公安局百里杜鹃分局 | F109: 勤务岗位 | G109: 116.20 | H109: 74.93 | I109: 77.47 | J109: 30.99 | K109: 44.96 | L109: 75.94 | M109: 5 | N109: 是
A110: 102 | B110: 吕玄 | C110: 07 | D110: 22601070815 | E110: 毕节市公安局百里杜鹃分局 | F110: 勤务岗位 | G110: 115.20 | H110: 74.3 | I110: 76.80 | J110: 30.72 | K110: 44.58 | L110: 75.30 | M110: 6
A111: 103 | B111: 钱亿源 | C111: 07 | D111: 22601070509 | E111: 毕节市公安局百里杜鹃分局 | F111: 勤务岗位 | G111: 113.90 | H111: 76.83 | I111: 75.93 | J111: 30.37 | K111: 46.10 | L111: 76.47 | M111: 2 | N111: 是
A112: 104 | B112: 金航 | C112: 07 | D112: 22601070424 | E112: 毕节市公安局百里杜鹃分局 | F112: 勤务岗位 | G112: 112.70 | H112: 72.7 | I112: 75.13 | J112: 30.05 | K112: 43.62 | L112: 73.67 | M112: 7
A113: 105 | B113: 钟启鸿 | C113: 07 | D113: 22601070102 | E113: 毕节市公安局百里杜鹃分局 | F113: 勤务岗位 | G113: 112.60 | H113: 72.5 | I113: 75.07 | J113: 30.03 | K113: 43.50 | L113: 73.53 | M113: 8
A114: 106 | B114: 刘济豪 | C114: 07 | D114: 22601071427 | E114: 毕节市公安局百里杜鹃分局 | F114: 勤务岗位 | G114: 109.50 | H114: 78.57 | I114: 73.00 | J114: 29.20 | K114: 47.14 | L114: 76.34 | M114: 3 | N114: 是
